bitfinex/quotes_BTCUSD_20250628
["timestamp","ask_amount","ask_price","bid_price","bid_amount"]
[1751116610475,4.78136732,107340.0,107330.0,0.70230897]
[1751116610914,4.79068333,107340.0,107330.0,0.70230897]
[1751116617021,4.79068333,107340.0,107330.0,0.55294897]
[1751116617229,4.79068333,107340.0,107330.0,0.70230897]
[1751116618819,4.77205139,107340.0,107330.0,0.70230897]
[1751116619046,4.76273555,107340.0,107330.0,0.70230897]
[1751116619629,4.76273547,107340.0,107330.0,0.70230897]
[1751116620851,4.77205131,107340.0,107330.0,0.70230897]
[1751116623337,4.77205122,107340.0,107330.0,0.70230897]
[1751116627425,4.78136715,107340.0,107330.0,0.70230897]
[1751116627659,4.78136715,107340.0,107330.0,0.69315077]
[1751116629034,4.77205122,107340.0,107330.0,0.69315077]
[1751116629693,4.7534198,107340.0,107330.0,0.69315077]
[1751116630515,4.37983748,107340.0,107330.0,0.69315077]
[1751116630717,4.35745289,107340.0,107330.0,0.69315077]
[1751116634113,4.34813748,107340.0,107330.0,0.69315077]
[1751116635260,4.34813748,107340.0,107330.0,0.46963077]
[1751116639975,4.36353748,107340.0,107330.0,0.46963077]
[1751116643052,4.34813748,107340.0,107330.0,0.46963077]
[1751116644089,4.35745297,107340.0,107330.0,0.46963077]
[1751116644522,4.37345297,107340.0,107330.0,0.46963077]
[1751116644981,4.73771971,107340.0,107330.0,0.46963077]
[1751116647235,4.74703538,107340.0,107330.0,0.46963077]
[1751116647656,4.74703529,107340.0,107330.0,0.46963077]
[1751116650275,4.76303529,107340.0,107330.0,0.32027077]
[1751116650503,4.77235104,107340.0,107330.0,0.46963077]
[1751116651868,4.78166705,107340.0,107330.0,0.46963077]
[1751116653451,5.03999709,107340.0,107330.0,0.30163779]
[1751116653670,5.03999709,107340.0,107330.0,0.35823771]
[1751116653872,4.96799149,107340.0,107330.0,0.35823771]
[1751116655049,4.96799149,107340.0,107330.0,0.34892109]
[1751116656515,4.96799149,107340.0,107330.0,0.19024438]
[1751116656677,4.95867591,107340.0,107330.0,0.34892126]
[1751116657487,4.95867591,107340.0,107330.0,0.35823805]
[1751116659162,4.95867591,107340.0,107330.0,0.36755476]
[1751116660441,5.05143599,107340.0,107330.0,0.36755476]
[1751116661056,4.95867591,107340.0,107330.0,0.36755476]
[1751116661264,4.94004415,107340.0,107330.0,0.33960438]
[1751116661881,4.94004415,107340.0,107330.0,0.34892126]
[1751116662907,4.94004415,107340.0,107330.0,0.33960438]
[1751116663663,4.93072805,107340.0,107330.0,0.33960438]
[1751116664429,4.93072805,107340.0,107330.0,0.03788]
[1751116664635,4.93072805,107340.0,107330.0,0.20587402]
[1751116664841,4.93072805,107340.0,107330.0,0.39221521]
[1751116665324,5.02348813,107340.0,107330.0,0.39221521]
[1751116665794,4.93072805,107340.0,107330.0,0.39221521]
[1751116666229,4.93072805,107340.0,107330.0,0.40153209]
[1751116667389,4.93072805,107340.0,107330.0,0.39221521]
[1751116671900,4.93072805,107340.0,107330.0,0.38289824]
[1751116672806,4.93072805,107340.0,107330.0,0.18724]
[1751116673312,5.02348813,107340.0,107330.0,0.18724]
[1751116676001,5.05146013,107340.0,107330.0,0.18724]
[1751116676215,5.02348813,107340.0,107330.0,0.18724]
[1751116676413,5.05146013,107340.0,107330.0,0.18724]
[1751116676744,5.02348813,107340.0,107330.0,0.18724]
[1751116676870,5.05146113,107340.0,107330.0,0.18724]
[1751116677333,5.02348813,107340.0,107330.0,0.18724]
[1751116677686,5.05146013,107340.0,107330.0,0.18724]
[1751116677820,5.02348813,107340.0,107330.0,0.18724]
[1751116678035,5.05146013,107340.0,107330.0,0.18724]
[1751116678232,5.02348813,107340.0,107330.0,0.18724]
[1751116678442,5.05146013,107340.0,107330.0,0.18724]
[1751116678653,5.02348813,107340.0,107330.0,0.18724]
[1751116679057,5.05146013,107340.0,107330.0,0.18724]
[1751116679341,5.02348813,107340.0,107330.0,0.18724]
[1751116679737,5.05146013,107340.0,107330.0,0.18724]
[1751116679933,5.02348813,107340.0,107330.0,0.18724]
[1751116680151,5.05146113,107340.0,107330.0,0.18724]
[1751116680565,5.02348813,107340.0,107330.0,0.18724]
[1751116680769,5.05146013,107340.0,107330.0,0.18724]
[1751116680971,5.02348813,107340.0,107330.0,0.18724]
[1751116681288,5.05146013,107340.0,107330.0,0.18724]
[1751116689943,5.05146013,107340.0,107330.0,0.03788]
[1751116690149,5.05146013,107340.0,107330.0,0.18724]
[1751116691507,5.41572687,107340.0,107330.0,0.03788]
[1751116691683,5.56508687,107340.0,107330.0,0.03788]
[1751116693053,5.56408687,107340.0,107330.0,0.03788]
[1751116693510,5.56808687,107340.0,107330.0,0.03788]
[1751116693711,5.95808687,107340.0,107330.0,0.03788]
[1751116693914,5.59382013,107340.0,107330.0,0.03788]
[1751116697075,5.95808687,107340.0,107330.0,0.03788]
[1751116705092,6.05084695,107340.0,107330.0,0.03788]
[1751116713041,5.68658021,107340.0,107330.0,0.03788]
[1751116715513,6.05084695,107340.0,107330.0,0.03788]
[1751116715892,5.68658021,107340.0,107330.0,0.03788]
[1751116720238,5.69312502,107340.0,107330.0,0.03788]
[1751116722591,5.60036494,107340.0,107330.0,0.03788]
[1751116727825,5.55036494,107340.0,107330.0,0.03788]
[1751116728024,5.60036494,107340.0,107330.0,0.03788]
[1751116729620,5.55036494,107340.0,107330.0,0.03788]
[1751116729794,5.60036494,107340.0,107330.0,0.03788]
[1751116732370,5.66558859,107340.0,107330.0,0.03788]
[1751116735037,5.61558859,107340.0,107330.0,0.03788]
[1751116735244,5.60036494,107340.0,107330.0,0.03788]
[1751116736072,0.19565807,107330.0,107320.0,0.07819792]
[1751116736273,0.55992481,107330.0,107320.0,0.07824366]
[1751116736808,0.58789981,107330.0,107320.0,0.07824366]
[1751116737831,0.59089981,107330.0,107320.0,0.07824366]
[1751116738798,0.59089981,107330.0,107320.0,0.06892574]
[1751116741428,0.6002166,107330.0,107320.0,0.26460221]
[1751116742059,0.59089981,107330.0,107320.0,0.26460221]
[1751116742992,0.59089981,107330.0,107320.0,0.27392005]
[1751116747341,0.68365989,107330.0,107320.0,0.07824366]
[1751116748288,0.59089981,107330.0,107320.0,0.07824366]
[1751116751938,0.59089981,107330.0,107320.0,0.06284366]
[1751116754630,0.59089981,107330.0,107320.0,0.04724366]
[1751116758537,0.95516655,107330.0,107320.0,0.04724366]
[1751116760406,0.22663307,107330.0,107320.0,0.04724366]
[1751116760606,0.95516655,107330.0,107320.0,0.04724366]
[1751116768553,0.95516655,107330.0,107320.0,0.24292005]
[1751116769530,0.95516655,107330.0,107320.0,0.04724366]
[1751116773519,0.95516655,107330.0,107320.0,0.03792574]
[1751116777855,0.95516655,107330.0,107320.0,0.04724366]
[1751116781818,0.95516655,107330.0,107320.0,0.03792574]
[1751116783678,0.95516655,107330.0,107320.0,0.04724366]
[1751116785069,0.95516655,107330.0,107320.0,0.03792574]
[1751116788461,0.59089981,107330.0,107320.0,0.03792574]
[1751116790643,0.22663307,107330.0,107320.0,0.04724366]
[1751116790852,0.59089981,107330.0,107320.0,0.04724366]
[1751116791538,0.59089981,107330.0,107320.0,0.03792574]
[1751116792561,0.59089981,107330.0,107320.0,0.04724366]
[1751116793285,0.59089981,107330.0,107320.0,0.24292005]
[1751116797049,0.59089981,107330.0,107320.0,0.23360221]
[1751116797893,0.59089981,107330.0,107320.0,0.24292005]
[1751116807924,0.59089981,107330.0,107320.0,0.2522378]
[1751116812833,0.59089981,107330.0,107320.0,0.4017178]
[1751116820323,0.59089981,107330.0,107320.0,0.39240005]
[1751116825016,0.95516655,107330.0,107320.0,0.39240005]
[1751116830945,0.95516655,107330.0,107320.0,0.4017178]
[1751116832887,0.95516655,107330.0,107320.0,0.39240005]
[1751116833292,0.97086655,107330.0,107320.0,0.39240005]
[1751116850169,0.97086655,107330.0,107320.0,0.19672366]
[1751116851134,0.97674967,107330.0,107320.0,0.19672366]
[1751116852738,0.96154967,107330.0,107320.0,0.19672366]
[1751116853362,0.96154967,107330.0,107320.0,0.38308221]
[1751116853558,0.96154967,107330.0,107320.0,0.39240005]
[1751116864282,0.93357467,107330.0,107320.0,0.39240005]
[1751116864483,0.93357467,107330.0,107320.0,0.19672366]
[1751116867997,0.93357467,107330.0,107320.0,0.39240005]
[1751116870732,0.93357467,107330.0,107320.0,0.38308221]
[1751116870954,0.93357467,107330.0,107320.0,0.18740574]
[1751116871877,0.93357467,107330.0,107320.0,0.19672366]
[1751116876236,0.93357467,107330.0,107320.0,0.03792574]
[1751116877084,0.93357467,107330.0,107320.0,0.04724366]
[1751116890666,0.93357467,107330.0,107320.0,0.03792574]
[1751116894135,0.91787467,107330.0,107320.0,0.03792574]
[1751116905411,0.91787467,107330.0,107320.0,0.22428429]
[1751116905615,0.91787467,107330.0,107320.0,0.03792574]
[1751116912531,0.95067467,107330.0,107320.0,0.03792574]
[1751116928421,1.04343475,107330.0,107320.0,0.03792574]
[1751116929504,0.95067467,107330.0,107320.0,0.03792574]
[1751116935874,0.93407467,107330.0,107320.0,0.03792574]
[1751116936273,0.94977467,107330.0,107320.0,0.03792574]
[1751116940369,0.97775167,107330.0,107320.0,0.03792574]
[1751116941440,1.12727167,107330.0,107320.0,0.03792574]
[1751116943287,2.02360235,107330.0,107320.0,4.574e-05]
[1751116943501,2.0959359,107330.0,107320.0,4.574e-05]
[1751116944014,2.0929359,107330.0,107320.0,4.574e-05]
[1751116944547,2.07460235,107330.0,107320.0,4.574e-05]
[1751116951600,1.71033561,107330.0,107320.0,4.574e-05]
[1751116952017,2.07460235,107330.0,107320.0,4.574e-05]
[1751116952433,1.98184227,107330.0,107320.0,4.574e-05]
[1751116957122,1.93184227,107330.0,107320.0,4.574e-05]
[1751116957361,2.02795636,107330.0,107320.0,4.574e-05]
[1751116959278,2.0502636,107330.0,107320.0,4.574e-05]
[1751116959431,2.02795636,107330.0,107320.0,4.574e-05]
[1751116959842,2.14302246,107330.0,107320.0,4.574e-05]
[1751116963318,0.5756129,107310.0,107300.0,0.00834713]
[1751116963649,1.54654646,107310.0,107300.0,0.00834713]
[1751116963849,1.53124646,107310.0,107300.0,0.00834713]
[1751116964037,1.54392946,107310.0,107300.0,0.00720179]
[1751116964594,1.54592946,107310.0,107300.0,0.00720179]
[1751116969144,1.59670044,107310.0,107300.0,0.00720179]
[1751116969550,1.54592946,107310.0,107300.0,0.00720179]
[1751116974571,1.55246514,107310.0,107300.0,0.00720179]
[1751116975134,1.54592946,107310.0,107300.0,0.00720179]
[1751116976033,1.54588946,107310.0,107300.0,0.00720179]
[1751116976266,1.54588946,107310.0,107300.0,0.03840179]
[1751116976479,1.54588946,107310.0,107300.0,0.00720179]
[1751116980040,1.63864954,107310.0,107300.0,0.00720179]
[1751116980627,1.65514954,107310.0,107300.0,0.00720179]
[1751116981231,1.66168505,107310.0,107300.0,0.00720179]
[1751116981429,1.65514954,107310.0,107300.0,0.00720179]
[1751116982214,1.66168533,107310.0,107300.0,0.00720179]
[1751116985969,1.67808533,107310.0,107300.0,0.00720179]
[1751116986828,2.04235207,107310.0,107300.0,0.00720179]
[1751116987021,1.67808533,107310.0,107300.0,0.00720179]
[1751116987256,2.04235207,107310.0,107300.0,0.00720179]
[1751116987476,1.67808533,107310.0,107300.0,0.00720179]
[1751116988025,1.67808815,107310.0,107300.0,0.00720179]
[1751116991471,1.69387165,107310.0,107300.0,0.00720179]
[1751116992478,1.70041175,107310.0,107300.0,0.00720179]
[1751117001642,1.68401175,107310.0,107300.0,0.00720179]
[1751117005952,1.70051175,107310.0,107300.0,0.00720179]
[1751117011345,1.68401175,107310.0,107300.0,0.00720179]
[1751117011571,1.66751175,107310.0,107300.0,0.00720179]
[1751117022769,1.42515167,107310.0,107300.0,0.00720179]
[1751117022977,1.55238956,107310.0,107300.0,0.00720179]
[1751117024427,1.56898956,107310.0,107300.0,0.00720179]
[1751117024764,1.41942956,107310.0,107300.0,0.00720179]
[1751117024935,1.56902956,107310.0,107300.0,0.00720179]
[1751117025134,1.66178964,107310.0,107300.0,0.00720179]
[1751117025362,1.51218964,107310.0,107300.0,0.00720179]
[1751117025599,1.66178964,107310.0,107300.0,0.00720179]
[1751117034920,1.55242956,107310.0,107300.0,0.00720179]
[1751117035146,1.57475996,107310.0,107300.0,0.00720179]
[1751117038520,1.56821986,107310.0,107300.0,0.00720179]
[1751117038664,1.57476442,107310.0,107300.0,0.00720179]
[1751117051507,1.57472442,107310.0,107300.0,0.00720179]
[1751117052188,1.43476992,107310.0,107300.0,0.00720179]
[1751117052617,1.58432992,107310.0,107300.0,0.00720179]
[1751117052824,1.57472442,107310.0,107300.0,0.00720179]
[1751117066760,1.59032442,107310.0,107300.0,0.00720179]
[1751117071122,1.60642442,107310.0,107300.0,0.00720179]
[1751117072758,1.59032442,107310.0,107300.0,0.00720179]
[1751117072978,1.6830845,107310.0,107300.0,0.00720179]
[1751117074680,1.6995845,107310.0,107300.0,0.00720179]
[1751117074914,2.06385124,107310.0,107300.0,0.00720179]
[1751117080023,1.6995845,107310.0,107300.0,0.00720179]
[1751117084559,1.6995445,107310.0,107300.0,0.00720179]
[1751117084767,1.6830445,107310.0,107300.0,0.00720179]
[1751117088230,1.68304224,107310.0,107300.0,0.00720179]
[1751117089461,1.68607335,107310.0,107300.0,0.00720179]
[1751117090581,2.06614009,107310.0,107300.0,0.00720179]
[1751117096282,1.70187335,107310.0,107300.0,0.00720179]
[1751117100611,1.68607335,107310.0,107300.0,0.00720179]
[1751117101499,1.70217335,107310.0,107300.0,0.00720179]
[1751117101973,2.06644009,107310.0,107300.0,0.00720179]
[1751117102380,1.70217335,107310.0,107300.0,0.00720179]
[1751117105701,1.68607335,107310.0,107300.0,0.00720179]
[1751117106728,1.59331327,107310.0,107300.0,0.00720179]
[1751117109425,1.59028216,107310.0,107300.0,0.00720179]
[1751117109643,1.58687632,107310.0,107300.0,0.00627047]
[1751117114738,1.95114306,107310.0,107300.0,0.00627047]
[1751117114934,1.58687632,107310.0,107300.0,0.00627047]
[1751117116929,1.57131632,107310.0,107300.0,0.00627047]
[1751117117133,1.54898592,107310.0,107300.0,0.03867047]
[1751117121558,1.54894592,107310.0,107300.0,0.03867047]
[1751117123252,1.54894592,107310.0,107300.0,0.02267047]
[1751117124835,1.54894592,107310.0,107300.0,0.00627047]
[1751117133495,1.57126939,107310.0,107300.0,0.00627047]
[1751117144102,1.58696939,107310.0,107300.0,0.00627047]
[1751117144310,1.57126939,107310.0,107300.0,0.00627047]
[1751117152049,1.67952947,107310.0,107300.0,0.00627047]
[1751117153967,1.58676939,107310.0,107300.0,0.00627047]
[1751117156511,1.96753613,107310.0,107300.0,0.00627047]
[1751117156923,1.60326939,107310.0,107300.0,0.00627047]
[1751117157538,1.58676939,107310.0,107300.0,0.00627047]
[1751117157958,1.60276939,107310.0,107300.0,0.00627047]
[1751117158155,1.62828061,107310.0,107300.0,0.00627047]
[1751117158997,1.60276939,107310.0,107300.0,0.00627047]
[1751117164001,1.96703613,107310.0,107300.0,0.00627047]
[1751117164651,1.60276939,107310.0,107300.0,0.00627047]
[1751117165266,1.58676939,107310.0,107300.0,0.00627047]
[1751117177299,1.60326939,107310.0,107300.0,0.00627047]
[1751117178170,1.96753613,107310.0,107300.0,0.00627047]
[1751117178944,1.60326939,107310.0,107300.0,0.00627047]
[1751117179548,1.61853223,107310.0,107300.0,0.00627047]
[1751117180102,1.98279897,107310.0,107300.0,0.00627047]
[1751117180945,1.61853223,107310.0,107300.0,0.00627047]
[1751117181402,1.60326939,107310.0,107300.0,0.00627047]
[1751117183912,1.96753613,107310.0,107300.0,0.00627047]
[1751117187535,1.98207698,107310.0,107300.0,0.00627047]
[1751117187802,2.03207698,107310.0,107300.0,0.00627047]
[1751117188692,2.51717698,107310.0,107300.0,0.00627047]
[1751117189166,2.60993706,107310.0,107300.0,0.00627047]
[1751117189417,2.51717698,107310.0,107300.0,0.00627047]
[1751117193471,2.15291024,107310.0,107300.0,0.00627047]
[1751117195084,2.51717698,107310.0,107300.0,0.00627047]
[1751117195284,2.15291024,107310.0,107300.0,0.00627047]
[1751117195506,2.22802046,107310.0,107300.0,0.00627047]
[1751117198520,2.15291024,107310.0,107300.0,0.00627047]
[1751117202020,2.51717698,107310.0,107300.0,0.00627047]
[1751117203575,2.5171779,107310.0,107300.0,0.00627047]
[1751117208550,2.5171779,107310.0,107290.0,0.0004]
[1751117208551,1.31970067,107300.0,107290.0,0.0004]
[1751117208766,1.69914752,107300.0,107290.0,0.0004]
[1751117208982,1.71414752,107300.0,107290.0,0.0004]
[1751117209847,1.72014752,107300.0,107290.0,0.0004]
[1751117210051,1.74813652,107300.0,107290.0,0.0004]
[1751117211574,1.74913652,107300.0,107290.0,0.0004]
[1751117214278,1.73413652,107300.0,107290.0,0.0004]
[1751117214499,1.75047652,107300.0,107290.0,0.0004]
[1751117214664,1.76501737,107300.0,107290.0,0.0004]
[1751117220014,1.73382969,107300.0,107290.0,0.0004]
[1751117228990,1.78382969,107300.0,107290.0,0.0004]
[1751117229206,3.24781759,107300.0,107290.0,0.0004]
[1751117229421,0.21027186,107290.0,107280.0,0.0074]
[1751117229644,1.52156298,107290.0,107280.0,0.0074]
[1751117229881,1.72940661,107290.0,107280.0,0.0074]
[1751117230423,1.80739961,107290.0,107280.0,0.0074]
[1751117230630,2.20739961,107290.0,107280.0,0.0074]
[1751117230841,2.20839961,107290.0,107280.0,0.00785863]
[1751117232084,2.21139961,107290.0,107280.0,0.00785863]
[1751117232490,2.23953037,107290.0,107280.0,0.00785863]
[1751117242682,1.28854947,107280.0,107270.0,0.0004]
[1751117242912,1.63089283,107280.0,107270.0,0.0004]
[1751117243352,1.65888783,107280.0,107270.0,0.0004]
[1751117243596,1.69028783,107280.0,107270.0,0.0004]
[1751117244003,1.69128783,107280.0,107270.0,0.0004]
[1751117244511,1.67548783,107280.0,107270.0,0.0004]
[1751117244728,1.67648783,107280.0,107270.0,0.0004]
[1751117245844,1.69228783,107280.0,107270.0,0.0004]
[1751117246581,2.05455994,107280.0,107270.0,0.0004]
[1751117247909,2.06375327,107280.0,107270.0,0.0004]
[1751117248771,2.04795327,107280.0,107270.0,0.0004]
[1751117250102,2.06295327,107280.0,107270.0,0.0004]
[1751117251827,2.04795327,107280.0,107270.0,0.0004]
[1751117253165,2.49196086,107280.0,107270.0,0.0004]
[1751117254094,2.49096086,107280.0,107270.0,0.0004]
[1751117254303,2.52920086,107280.0,107270.0,0.0004]
[1751117254523,2.52820086,107280.0,107270.0,0.0004]
[1751117254760,2.53120086,107280.0,107270.0,0.0004]
[1751117255134,2.34268086,107280.0,107270.0,0.0004]
[1751117255318,2.53148086,107280.0,107270.0,0.0004]
[1751117255522,2.53348086,107280.0,107270.0,0.0004]
[1751117255716,0.63080835,107270.0,107250.0,0.00738]
[1751117255927,1.53190606,107260.0,107250.0,0.00738]
[1751117256343,1.55990406,107260.0,107250.0,0.00738]
[1751117256558,1.56642967,107260.0,107250.0,0.00738]
[1751117256777,1.56642967,107260.0,107250.0,0.00938]
[1751117257453,1.56642967,107260.0,107250.0,0.01038]
[1751117257665,1.56642967,107260.0,107250.0,0.00838]
[1751117258285,1.62247193,107260.0,107250.0,0.00838]
[1751117258736,1.62247193,107260.0,107250.0,0.00738]
[1751117259791,1.65020537,107260.0,107250.0,0.00738]
[1751117260632,1.71474622,107260.0,107250.0,0.00738]
[1751117263686,1.73084622,107260.0,107250.0,0.00738]
[1751117265664,1.71474622,107260.0,107250.0,0.00738]
[1751117267394,1.74714622,107260.0,107250.0,0.00738]
[1751117267991,1.73054622,107260.0,107250.0,0.00738]
[1751117268932,1.26433749,107250.0,107240.0,0.04393879]
[1751117269141,1.50781757,107250.0,107240.0,0.04393879]
[1751117270207,1.50827587,107250.0,107240.0,0.04493879]
[1751117270421,1.53627787,107250.0,107240.0,0.04793879]
[1751117271025,0.92435575,107240.0,107230.0,0.02222265]
[1751117271226,1.16783583,107240.0,107230.0,0.02222265]
[1751117272376,1.16783583,107240.0,107230.0,0.02522265]
[1751117273136,0.02797592,107230.0,107220.0,0.17207499]
[1751117273318,0.39224266,107230.0,107220.0,0.17207499]
[1751117273705,0.5880831,107230.0,107220.0,0.1534229]
[1751117274113,0.5880831,107230.0,107220.0,0.1845229]
[1751117274724,0.5880831,107230.0,107220.0,0.1875229]
[1751117275284,0.5880831,107230.0,107220.0,0.19684899]
[1751117275859,0.5880831,107230.0,107220.0,0.19984899]
[1751117276899,0.59746363,107230.0,107220.0,0.19984899]
[1751117278779,0.59746363,107230.0,107220.0,0.19983899]
[1751117281948,0.41094833,107230.0,107220.0,0.20916499]
[1751117282179,0.4015678,107230.0,107220.0,0.20916499]
[1751117282403,0.41089424,107230.0,107220.0,0.20916499]
[1751117283754,0.5974092,107230.0,107220.0,0.19983899]
[1751117284217,0.41089424,107230.0,107220.0,0.19983899]
[1751117285906,0.42008419,107230.0,107220.0,0.19983899]
[1751117286341,0.41089424,107230.0,107220.0,0.19983899]
[1751117286750,0.5974092,107230.0,107220.0,0.19983899]
[1751117287892,0.58808398,107230.0,107220.0,0.19983899]
[1751117290153,0.40156902,107230.0,107220.0,0.20916499]
[1751117290959,0.41091311,107230.0,107220.0,0.20916499]
[1751117291387,0.40158737,107230.0,107220.0,0.20916499]
[1751117292372,0.41091311,107230.0,107220.0,0.20916499]
[1751117295784,0.40156902,107230.0,107220.0,0.20916499]
[1751117297248,0.58808398,107230.0,107220.0,0.19983899]
[1751117298355,0.58808398,107230.0,107220.0,0.18443899]
[1751117298942,0.58808398,107230.0,107220.0,0.16873899]
[1751117300111,0.58808398,107230.0,107220.0,0.18373899]
[1751117301174,0.59737482,107230.0,107220.0,0.18373899]
[1751117301393,0.59737482,107230.0,107220.0,0.16873899]
[1751117302773,0.23310808,107230.0,107220.0,0.16873899]
[1751117303005,0.58808398,107230.0,107220.0,0.16873899]
[1751117304433,0.58808398,107230.0,107220.0,0.15941341]
[1751117304616,0.58808398,107230.0,107220.0,0.16873968]
[1751117304830,0.58808398,107230.0,107220.0,0.15941341]
[1751117305049,0.57875867,107230.0,107220.0,0.16873968]
[1751117305254,0.58826438,107230.0,107220.0,0.16873968]
[1751117306244,0.58826438,107230.0,107220.0,0.17806586]
[1751117306646,0.58826438,107230.0,107220.0,0.18739195]
[1751117309480,0.58826438,107230.0,107220.0,0.14915195]
[1751117309682,0.61043881,107230.0,107220.0,0.13049968]
[1751117313030,0.61043881,107230.0,107220.0,0.13982586]
[1751117313623,0.24617207,107230.0,107220.0,0.14915195]
[1751117313795,0.61043881,107230.0,107220.0,0.14915195]
[1751117316025,0.86245026,107240.0,107230.0,0.18651496]
[1751117316394,1.23604161,107240.0,107230.0,0.20516636]
[1751117316594,1.23612161,107240.0,107230.0,0.21449184]
[1751117316825,1.24565068,107240.0,107230.0,0.21449184]
[1751117317424,1.24565068,107240.0,107230.0,0.21849184]
[1751117318180,1.24565068,107240.0,107230.0,0.20916636]
[1751117318758,1.24565068,107240.0,107230.0,0.21849193]
[1751117319143,1.0022106,107240.0,107230.0,0.21849193]
[1751117319349,1.13424112,107240.0,107230.0,0.20916636]
[1751117319676,0.98356112,107240.0,107230.0,0.20916636]
[1751117319886,1.13424112,107240.0,107230.0,0.20916636]
[1751117320313,0.98356112,107240.0,107230.0,0.20916636]
[1751117320527,0.98356112,107240.0,107230.0,0.21849193]
[1751117320528,1.13424112,107240.0,107230.0,0.21849193]
[1751117321825,0.25502764,107240.0,107230.0,0.21849193]
[1751117322059,1.13424112,107240.0,107230.0,0.21849193]
[1751117322499,0.98356112,107240.0,107230.0,0.21849193]
[1751117322720,1.13424112,107240.0,107230.0,0.21849193]
[1751117322914,0.40570764,107240.0,107230.0,0.21849193]
[1751117323148,1.13424112,107240.0,107230.0,0.21849193]
[1751117323558,0.98356112,107240.0,107230.0,0.21849193]
[1751117323763,0.39060764,107240.0,107230.0,0.21849193]
[1751117323967,1.11914112,107240.0,107230.0,0.21849193]
[1751117324361,1.13434112,107240.0,107230.0,0.21849193]
[1751117326104,0.40580764,107240.0,107230.0,0.21849193]
[1751117326278,0.98366112,107240.0,107230.0,0.21849193]
[1751117326489,1.13434112,107240.0,107230.0,0.21849193]
[1751117328895,0.40580764,107240.0,107230.0,0.21849193]
[1751117329101,1.13434112,107240.0,107230.0,0.21849193]
[1751117330549,0.40580764,107240.0,107230.0,0.21849193]
[1751117330751,1.13434112,107240.0,107230.0,0.21849193]
[1751117332883,1.13434112,107240.0,107230.0,0.20916636]
[1751117333121,1.13434112,107240.0,107230.0,0.01332574]
[1751117335295,1.13434112,107240.0,107230.0,0.20916636]
[1751117337082,0.98366112,107240.0,107230.0,0.21849193]
[1751117337421,1.12486917,107240.0,107230.0,0.21849193]
[1751117337664,1.12486917,107240.0,107230.0,0.22781741]
[1751117337882,0.97430917,107240.0,107230.0,0.22781741]
[1751117338087,1.12494917,107240.0,107230.0,0.22781741]
[1751117338753,0.97430917,107240.0,107230.0,0.22781741]
[1751117338984,1.12494917,107240.0,107230.0,0.22781741]
[1751117340045,1.11562499,107240.0,107230.0,0.1998407]
[1751117341447,1.11562499,107240.0,107230.0,0.20916636]
[1751117344377,1.11562499,107240.0,107230.0,0.004]
[1751117344584,1.14362499,107240.0,107230.0,0.004]
[1751117345241,1.14362499,107240.0,107230.0,0.02148171]
[1751117346230,1.14362499,107240.0,107230.0,0.004]
[1751117348866,0.41509151,107240.0,107230.0,0.004]
[1751117349020,1.14362499,107240.0,107230.0,0.01332574]
[1751117351008,1.14362499,107240.0,107230.0,0.004]
[1751117351443,1.14362499,107240.0,107230.0,0.01332574]
[1751117355575,1.14362499,107240.0,107230.0,0.004]
[1751117358817,1.84789173,107240.0,107230.0,0.004]
[1751117359043,1.48362499,107240.0,107230.0,0.004]
[1751117359495,1.84789173,107240.0,107230.0,0.004]
[1751117359692,1.48362499,107240.0,107230.0,0.004]
[1751117359899,1.48362499,107240.0,107230.0,0.003]
[1751117360325,1.48462499,107240.0,107230.0,0.003]
[1751117361519,0.19584062,107230.0,107220.0,0.20518452]
[1751117361733,0.37774062,107230.0,107220.0,0.20518452]
[1751117361933,1.1062741,107230.0,107220.0,0.00932661]
[1751117362343,0.75500836,107230.0,107220.0,0.00932661]
[1751117362517,0.77000836,107230.0,107220.0,0.00932661]
[1751117363022,0.77000836,107230.0,107220.0,0.01032661]
[1751117363245,0.77060836,107230.0,107220.0,0.01032661]
[1751117364242,1.1348751,107230.0,107220.0,0.001]
[1751117364661,1.1068741,107230.0,107220.0,0.001]
[1751117365680,1.1348771,107230.0,107220.0,0.001]
[1751117366257,0.2273588,107220.0,107210.0,0.0143098]
[1751117366477,1.10657228,107220.0,107210.0,0.0143098]
[1751117366984,0.00932609,107220.0,107210.0,0.2195141]
[1751117367216,1.10309072,107220.0,107210.0,0.22884149]
[1751117367399,0.95337072,107220.0,107210.0,0.23816863]
[1751117367604,0.95337072,107220.0,107210.0,0.24749568]
[1751117368282,0.95437072,107220.0,107210.0,0.24749568]
[1751117368488,0.97027072,107220.0,107210.0,0.24749568]
[1751117368910,0.97027072,107220.0,107210.0,0.24749524]
[1751117368911,0.95437072,107220.0,107210.0,0.24749524]
[1751117369322,0.76783836,107220.0,107210.0,0.24749524]
[1751117370353,0.94504489,107220.0,107210.0,0.21951409]
[1751117370742,0.97654489,107220.0,107210.0,0.21951409]
[1751117371187,0.24801141,107220.0,107210.0,0.21951409]
[1751117371401,0.97654489,107220.0,107210.0,0.22884114]
[1751117372813,0.96094489,107220.0,107210.0,0.22884114]
[1751117373021,0.96094489,107220.0,107210.0,0.2381681]
[1751117373861,0.96094489,107220.0,107210.0,0.22884114]
[1751117376863,0.97614489,107220.0,107210.0,0.21951409]
[1751117377068,0.9668188,107220.0,107210.0,0.21951409]
[1751117378201,0.9516188,107220.0,107210.0,0.21951409]
[1751117378393,0.9674188,107220.0,107210.0,0.21951409]
[1751117380329,0.9674188,107220.0,107210.0,0.22884123]
[1751117381247,0.9516188,107220.0,107210.0,0.23816828]
[1751117381658,0.9674188,107220.0,107210.0,0.23816828]
[1751117383125,0.9674188,107220.0,107210.0,0.22884123]
[1751117383348,0.95809245,107220.0,107210.0,0.21951409]
[1751117383889,0.94876584,107220.0,107210.0,0.21018704]
[1751117385031,0.94876584,107220.0,107210.0,0.21951435]
[1751117385414,0.94876584,107220.0,107210.0,0.21018704]
[1751117386706,0.94876584,107220.0,107210.0,0.21951444]
[1751117387320,0.94876584,107220.0,107210.0,0.22884175]
[1751117389085,0.94876584,107220.0,107210.0,0.23816897]
[1751117390879,0.94876584,107220.0,107210.0,0.24749611]
[1751117396981,0.94876584,107220.0,107210.0,0.23816897]
[1751117400011,0.94876584,107220.0,107210.0,0.24749611]
[1751117400376,0.76223348,107220.0,107210.0,0.24749611]
[1751117400582,0.37559266,107220.0,107210.0,0.2474955]
[1751117400965,0.38491884,107220.0,107210.0,0.2474955]
[1751117401174,0.39424528,107220.0,107210.0,0.2474955]
[1751117401396,0.98547091,107220.0,107210.0,0.21951427]
[1751117401612,0.97614499,107220.0,107210.0,0.22884141]
[1751117401815,0.97614499,107220.0,107210.0,0.41836141]
[1751117402051,0.96681881,107220.0,107210.0,0.39974704]
[1751117402269,0.95749237,107220.0,107210.0,0.37039444]
[1751117402880,0.95749237,107220.0,107210.0,0.37972175]
[1751117403795,0.95749237,107220.0,107210.0,0.38904897]
[1751117407040,0.95749237,107220.0,107210.0,0.37972175]
[1751117409906,0.95749237,107220.0,107210.0,0.38904897]
[1751117410305,0.95749237,107220.0,107210.0,0.37972175]
[1751117412186,0.95749237,107220.0,107210.0,0.38904897]